[Event "4th Sabbiadoro-Master 2018"]
[Site "Lignano Sabbiadoro"]
[Date "2018.08.04"]
[Round "8.8"]
[White "Grigorian, Roudolph"]
[Black "Siclari, Giovanni"]
[Result "0-1"]
[ECO "B43"]
[WhiteElo "2154"]
[BlackElo "2185"]
[Annotator "NA"]
[PlyCount "162"]
[EventDate "2018.07.29"]
[EventType "swiss"]
[EventCountry "ITA"]
[SourceTitle "playchess.com"]
[Source "ChessBase"]
[SourceQuality "1"]
[TimeControl "5400+30"]

1. e4 {[%emt 0:00:30]} c5 {[%emt 0:00:30]} 2. Nf3 {[%emt 0:00:00]} e6 {[%emt 0:00:00]} 3. d4 {[%emt 0:00:00]} cxd4 {[%emt 0:00:00]} 4. Nxd4 {[%emt 0:00:00]} a6 {[%emt 0:00:00]} 5. Nc3 {[%emt 0:00:00]} Qc7 {[%emt 0:00:00]} 6. Be2 {[%emt 0:00:00]} Nf6 {[%emt 0:00:30]} 7. Be3 {[%emt 0:00:00]} Bb4 {[%emt 0:03:30]} 8. O-O {[%emt 0:18:30]} Bxc3 {[%emt 0:13:30]} 9. bxc3 {[%emt 0:00:30]} Nxe4 {[%emt 0:00:30]} 10. c4 {[%emt 0:00:30]} d6 {[%emt 0:14:30]} 11. Bd3 {[%emt 0:10:30]} Nf6 {[%emt 0:00:30]} 12. f4 {[%emt 0:05:30]} Nbd7 {[%emt 0:04:30]} 13. g4 {[%emt 0:00:30]} h5 {[%emt 0:10:30]} 14. g5 {[%emt 0:03:30]} Ng4 {[%emt 0:01:30]} 15. Qf3 {[%emt 0:00:30]} Nxe3 {[%emt 0:06:30]} 16. Qxe3 {[%emt 0:00:30]} Nc5 {[%emt 0:01:30]} 17. Rad1 {[%emt 0:10:30]} Bd7 {[%emt 0:06:30]} 18. g6 {[%emt 0:03:30]} O-O-O {[%emt 0:04:30]} 19. gxf7 {[%emt 0:00:30]} Rdf8 {[%emt 0:01:30]} 20. f5 {[%emt 0:10:30]} e5 {[%emt 0:03:30]} 21. Ne2 {[%emt 0:07:30]} Rxf7 {[%emt 0:01:30]} 22. Nc3 {[%emt 0:00:30]} Bc6 {[%emt 0:00:30]} 23. Be4 {[%emt 0:00:30]} Bxe4 {[%emt 0:02:30]} 24. Nxe4 {[%emt 0:00:30]} Nxe4 {[%emt 0:00:30]} 25. Qxe4 {[%emt 0:00:00]} Qc5+ {[%emt 0:02:30]} 26. Kg2 {[%emt 0:00:00]} Rc7 {[%emt 0:00:30]} 27. Rf2 {[%emt 0:01:30]} Rh6 {[%emt 0:02:04]} 28. Rfd2 {[%emt 0:12:20]} Qxc4 {[%emt 0:09:09]} 29. Qxe5 {[%emt 0:00:02]} Qc6+ {[%emt 0:03:15]} 30. Kg1 {[%emt 0:03:58]} Qc5+ {[%emt 0:01:27]} 31. Qxc5 {[%emt 0:00:04]} Rxc5 {[%emt 0:00:05]} 32. Rxd6 {[%emt 0:00:10]} Rxd6 {[%emt 0:04:53]} 33. Rxd6 {[%emt 0:00:01]} Rxf5 {[%emt 0:00:10]} 34. Rd2 {[%emt 0:05:23]} Kc7 {[%emt 0:00:38]} 35. Kg2 {[%emt 0:00:02]} g5 {[%emt 0:00:23]} 36. Re2 {[%emt 0:00:47]} Kd6 {[%emt 0:00:28]} 37. Kg3 {[%emt 0:00:29]} Rc5 {[%emt 0:00:05]} 38. Kf3 {[%emt 0:00:52]} Rf5+ {[%emt 0:00:25]} 39. Kg3 {[%emt 0:00:07]} Ra5 {[%emt 0:00:56]} 40. c4 {[%emt 0:03:50]} Ra3+ {[%emt 0:00:29]} 41. Kg2 {[%emt 0:00:07]} Rc3 {[%emt 0:00:34]} 42. Re4 {[%emt 0:00:14]} Rc2+ {[%emt 0:01:48]} 43. Kg3 {[%emt 0:00:01]} Rc3+ {[%emt 0:00:33]} 44. Kg2 {[%emt 0:00:15]} g4 {[%emt 0:01:46]} 45. Rd4+ {[%emt 0:01:53]} Kc6 {[%emt 0:00:08]} 46. Rf4 {[%emt 0:00:44]} Rh3 {[%emt 0:00:39]} 47. a4 {[%emt 0:00:20]} Kc5 {[%emt 0:00:56]} 48. Rf7 {[%emt 0:00:01]} b6 {[%emt 0:00:08]} 49. Rc7+ {[%emt 0:00:09]} Kb4 {[%emt 0:00:05]} 50. Rb7 {[%emt 0:02:22]} Ka5 {[%emt 0:00:06]} 51. Rb8 {[%emt 0:00:22]} Rc3 {[%emt 0:00:54]} 52. Rc8 {[%emt 0:02:15]} Kxa4 {[%emt 0:01:14]} 53. Rc6 {[%emt 0:00:01]} Ka5 {[%emt 0:00:00]} 54. Rh6 {[%emt 0:00:02]} Rh3 {[%emt 0:00:04]} 55. Rg6 {[%emt 0:00:25]} Rc3 {[%emt 0:01:10]} 56. Rg5+ {[%emt 0:00:16]} Kb4 {[%emt 0:00:19]} 57. Rxh5 {[%emt 0:01:02]} Rxc4 {[%emt 0:00:06]} 58. Rh6 {[%emt 0:00:13]} Ka5 {[%emt 0:00:13]} 59. Kf2 {[%emt 0:01:52]} b5 {[%emt 0:00:07]} 60. Ke2 {[%emt 0:00:21]} Rc3 {[%emt 0:01:00]} 61. Rg6 {[%emt 0:00:35]} Rc2+ {[%emt 0:00:05]} 62. Kd3 {[%emt 0:00:07]} Rxh2 {[%emt 0:00:04]} 63. Rxg4 {[%emt 0:00:00]} Rh3+ {[%emt 0:00:09]} 64. Kc2 {[%emt 0:00:06]} b4 {[%emt 0:00:03]} 65. Rg6 {[%emt 0:00:17]} Kb5 {[%emt 0:00:04]} 66. Kb2 {[%emt 0:00:13]} a5 {[%emt 0:00:08]} 67. Rf6 {[%emt 0:00:04]} Ka4 {[%emt 0:00:00]} 68. Rf2 {[%emt 0:00:11]} Rh4 {[%emt 0:00:27]} 69. Rg2 {[%emt 0:00:28]} b3 {[%emt 0:01:09]} 70. Rf2 {[%emt 0:02:19]} Kb4 {[%emt 0:00:05]} 71. Rg2 {[%emt 0:00:48]} a4 {[%emt 0:00:06]} 72. Rg1 {[%emt 0:00:15]} a3+ {[%emt 0:00:05]} 73. Kb1 {[%emt 0:00:25]} Rh3 {[%emt 0:00:34]} 74. Rf1 {[%emt 0:00:45]} Re3 {[%emt 0:00:15]} 75. Rg1 {[%emt 0:00:42]} Kc3 {[%emt 0:00:21]} 76. Rd1 {[%emt 0:01:53]} Re2 {[%emt 0:01:44]} 77. Ka1 {[%emt 0:00:39]} Kc2 {[%emt 0:00:16]} 78. Rb1 {[%emt 0:00:51]} b2+ {[%emt 0:02:31]} 79. Ka2 {[%emt 0:00:12]} Rd2 {[%emt 0:00:10]} 80. Rh1 {[%emt 0:00:39]} Rd1 {[%emt 0:00:09]} 81. Rh2+ {[%emt 0:00:23]} Kc1 {[%emt 0:00:39]} 0-1

[Event "4th Sabbiadoro-Master 2018"]
[Site "Lignano Sabbiadoro"]
[Date "2018.08.04"]
[Round "8.9"]
[White "Peric, Slavisa"]
[Black "Tiraboschi, Nicolo`"]
[Result "1-0"]
[ECO "D27"]
[WhiteElo "2120"]
[BlackElo "2102"]
[Annotator "NA"]
[PlyCount "75"]
[EventDate "2018.07.29"]
[EventType "swiss"]
[EventCountry "ITA"]
[SourceTitle "playchess.com"]
[Source "ChessBase"]
[SourceQuality "1"]
[TimeControl "5400+30"]

1. d4 {[%emt 0:00:30]} d5 {[%emt 0:04:30]} 2. Nf3 {[%emt 0:01:30]} Nf6 {[%emt 0:01:30]} 3. c4 {[%emt 0:00:30]} e6 {[%emt 0:00:00]} 4. Nc3 {[%emt 0:00:30]} dxc4 {[%emt 0:00:00]} 5. e3 {[%emt 0:00:00]} a6 {[%emt 0:00:30]} 6. a4 {[%emt 0:01:00]} c5 {[%emt 0:00:30]} 7. Bxc4 {[%emt 0:00:30]} Nc6 {[%emt 0:02:30]} 8. O-O {[%emt 0:00:00]} cxd4 {[%emt 0:02:30]} 9. exd4 {[%emt 0:04:00]} Be7 {[%emt 0:01:30]} 10. Be3 {[%emt 0:18:30]} O-O {[%emt 0:03:30]} 11. h3 {[%emt 0:01:30]} Nb4 {[%emt 0:03:30]} 12. Ne5 {[%emt 0:00:30]} b6 {[%emt 0:01:30]} 13. Qe2 {[%emt 0:05:30]} Bb7 {[%emt 0:03:30]} 14. Rfd1 {[%emt 0:01:30]} Nfd5 {[%emt 0:02:30]} 15. Nxd5 {[%emt 0:04:30]} Bxd5 {[%emt 0:04:30]} 16. b3 {[%emt 0:00:30]} Ra7 {[%emt 0:14:30]} 17. Rac1 {[%emt 0:02:30]} b5 {[%emt 0:21:30]} 18. Bxd5 {[%emt 0:14:30]} Qxd5 {[%emt 0:00:30]} 19. Bd2 {[%emt 0:01:30]} Rb7 {[%emt 0:09:30]} 20. axb5 {[%emt 0:05:30]} axb5 {[%emt 0:00:30]} 21. Qf3 {[%emt 0:02:30]} f6 {[%emt 0:07:39]} 22. Bxb4 {[%emt 0:07:30]} Qxf3 {[%emt 0:02:11]} 23. Nxf3 {[%emt 0:00:30]} Bxb4 {[%emt 0:00:03]} 24. Rc6 {[%emt 0:00:30]} Kf7 {[%emt 0:00:53]} 25. Ra1 {[%emt 0:01:30]} Re8 {[%emt 0:08:10]} 26. Raa6 {[%emt 0:00:30]} Bf8 {[%emt 0:00:27]} 27. Kf1 {[%emt 0:03:30]} b4 {[%emt 0:00:28]} 28. Ke2 {[%emt 0:00:30]} Ree7 {[%emt 0:00:04]} 29. Kd3 {[%emt 0:05:16]} Rec7 {[%emt 0:00:31]} 30. Nd2 {[%emt 0:04:11]} Rxc6 {[%emt 0:00:08]} 31. Rxc6 {[%emt 0:00:11]} Ra7 {[%emt 0:00:16]} 32. Ne4 {[%emt 0:01:08]} Ra2 {[%emt 0:01:48]} 33. Rc7+ {[%emt 0:02:33]} Kg6 {[%emt 0:01:48]} 34. Nc5 {[%emt 0:00:13]} Bd6 {[%emt 0:02:27]} 35. Rd7 {[%emt 0:00:25]} Bf4 {[%emt 0:00:53]} 36. Nxe6 {[%emt 0:01:35]} Bh6 {[%emt 0:00:30]} 37. Nf8+ {[%emt 0:01:55]} Kf5 {[%emt 0:00:05]} 38. Rd5+ {[%emt 0:00:09]} 1-0

[Event "4th Sabbiadoro-Master 2018"]
[Site "Lignano Sabbiadoro"]
[Date "2018.08.04"]
[Round "8.10"]
[White "Mufic, Goran"]
[Black "Sponchiado, Dario"]
[Result "1/2-1/2"]
[ECO "C11"]
[WhiteElo "2299"]
[BlackElo "2059"]
[Annotator "NA"]
[PlyCount "46"]
[EventDate "2018.07.29"]
[EventType "swiss"]
[EventCountry "ITA"]
[SourceTitle "playchess.com"]
[Source "ChessBase"]
[SourceQuality "1"]
[TimeControl "5400+30"]

1. e4 {[%emt 0:00:30]} e6 {[%emt 0:00:30]} 2. Nc3 {[%emt 0:00:00]} d5 {[%emt 0:00:30]} 3. Nf3 {[%emt 0:00:00]} Nf6 {[%emt 0:00:30]} 4. e5 {[%emt 0:00:00]} Nfd7 {[%emt 0:00:30]} 5. d4 {[%emt 0:00:00]} a6 {[%emt 0:02:30]} 6. Bd3 {[%emt 0:00:30]} c5 {[%emt 0:03:30]} 7. dxc5 {[%emt 0:00:00]} Nxc5 {[%emt 0:00:30]} 8. O-O {[%emt 0:00:00]} Nc6 {[%emt 0:02:30]} 9. Re1 {[%emt 0:01:30]} Be7 {[%emt 0:02:30]} 10. a3 {[%emt 0:05:30]} O-O {[%emt 0:07:30]} 11. Bf4 {[%emt 0:05:30]} f5 {[%emt 0:16:30]} 12. exf6 {[%emt 0:02:30]} Bxf6 {[%emt 0:00:30]} 13. Qd2 {[%emt 0:02:30]} b5 {[%emt 0:22:30]} 14. Ne5 {[%emt 0:01:30]} Nxe5 {[%emt 0:05:30]} 15. Bxe5 {[%emt 0:00:00]} Bb7 {[%emt 0:01:30]} 16. Bg3 {[%emt 0:13:00]} Qb6 {[%emt 0:02:30]} 17. Rad1 {[%emt 0:07:30]} Rad8 {[%emt 0:06:30]} 18. Kh1 {[%emt 0:07:30]} b4 {[%emt 0:02:30]} 19. axb4 {[%emt 0:01:30]} Ne4 {[%emt 0:00:30]} 20. Bxe4 {[%emt 0:00:30]} dxe4 {[%emt 0:00:30]} 21. Qe2 {[%emt 0:09:30]} Qxb4 {[%emt 0:03:49]} 22. h4 {[%emt 0:01:30]} Bxc3 {[%emt 0:06:17]} 23. bxc3 {[%emt 0:00:00]} Qxc3 {[%emt 0:00:10]} 1/2-1/2

[Event "4th Sabbiadoro-Master 2018"]
[Site "Lignano Sabbiadoro"]
[Date "2018.08.05"]
[Round "9.2"]
[White "Nester, Ihor"]
[Black "Ristic, Nenad"]
[Result "0-1"]
[ECO "D97"]
[WhiteElo "2305"]
[BlackElo "2356"]
[Annotator "NA"]
[PlyCount "64"]
[EventDate "2018.07.29"]
[EventType "swiss"]
[EventCountry "ITA"]
[SourceTitle "playchess.com"]
[Source "ChessBase"]
[SourceQuality "1"]
[TimeControl "5400+30"]

1. Nf3 {[%emt 0:06:30]} Nf6 {[%emt 0:00:30]} 2. c4 {[%emt 0:00:00]} g6 {[%emt 0:00:30]} 3. d4 {[%emt 0:00:00]} Bg7 {[%emt 0:01:30]} 4. Nc3 {[%emt 0:00:00]} d5 {[%emt 0:00:30]} 5. Qb3 {[%emt 0:01:00]} dxc4 {[%emt 0:00:30]} 6. Qxc4 {[%emt 0:00:00]} O-O {[%emt 0:03:30]} 7. e4 {[%emt 0:01:00]} Be6 {[%emt 0:01:30]} 8. d5 {[%emt 0:00:30]} Bc8 {[%emt 0:00:00]} 9. e5 {[%emt 0:03:30]} Nfd7 {[%emt 0:03:00]} 10. Bf4 {[%emt 0:03:30]} c6 {[%emt 0:02:30]} 11. O-O-O {[%emt 0:24:30]} Nb6 {[%emt 0:10:30]} 12. Qb3 {[%emt 0:01:30]} cxd5 {[%emt 0:01:30]} 13. Nxd5 {[%emt 0:00:30]} Nxd5 {[%emt 0:01:30]} 14. Qxd5 {[%emt 0:00:30]} Qb6 {[%emt 0:02:30]} 15. Qd4 {[%emt 0:00:30]} Qa5 {[%emt 0:03:30]} 16. Kb1 {[%emt 0:03:30]} Nc6 {[%emt 0:02:30]} 17. Qc3 {[%emt 0:01:30]} Qa4 {[%emt 0:06:30]} 18. Bc4 {[%emt 0:00:30]} Bf5+ {[%emt 0:03:30]} 19. Ka1 {[%emt 0:00:30]} Rac8 {[%emt 0:01:30]} 20. Qb3 {[%emt 0:01:30]} Qa5 {[%emt 0:05:30]} 21. Bxf7+ {[%emt 0:14:30]} Rxf7 {[%emt 0:10:30]} 22. Ng5 {[%emt 0:00:30]} Rcf8 {[%emt 0:02:30]} 23. Nxf7 {[%emt 0:01:30]} Rxf7 {[%emt 0:00:30]} 24. Qxb7 {[%emt 0:00:30]} Nb4 {[%emt 0:02:30]} 25. a3 {[%emt 0:00:30]} Nc2+ {[%emt 0:00:30]} 26. Ka2 {[%emt 0:00:30]} Be6+ {[%emt 0:00:30]} 27. Kb1 {[%emt 0:00:30]} Rxf4 {[%emt 0:00:30]} 28. Kxc2 {[%emt 0:00:30]} Bf5+ {[%emt 0:01:30]} 29. Kb3 {[%emt 0:00:00]} Be6+ {[%emt 0:00:30]} 30. Kc2 {[%emt 0:00:00]} Rxf2+ {[%emt 0:00:30]} 31. Kb1 {[%emt 0:00:30]} Bxe5 {[%emt 0:00:30]} 32. Qxe7 {[%emt 0:00:30]} Rxb2+ {[%emt 0:00:00]} 0-1

[Event "4th Sabbiadoro-Master 2018"]
[Site "Lignano Sabbiadoro"]
[Date "2018.08.05"]
[Round "9.3"]
[White "Siclari, Giovanni"]
[Black "Damia, Angelo"]
[Result "0-1"]
[ECO "D38"]
[WhiteElo "2185"]
[BlackElo "2313"]
[Annotator "NA"]
[PlyCount "102"]
[EventDate "2018.07.29"]
[EventType "swiss"]
[EventCountry "ITA"]
[SourceTitle "playchess.com"]
[Source "ChessBase"]
[SourceQuality "1"]
[TimeControl "5400+30"]

1. Nf3 {[%emt 0:14:30]} d5 {[%emt 0:00:30]} 2. d4 {[%emt 0:00:00]} Nf6 {[%emt 0:00:30]} 3. c4 {[%emt 0:00:00]} e6 {[%emt 0:00:30]} 4. Nc3 {[%emt 0:00:00]} c6 {[%emt 0:03:30]} 5. Bg5 {[%emt 0:00:00]} Bb4 {[%emt 0:00:00]} 6. cxd5 {[%emt 0:03:30]} exd5 {[%emt 0:00:00]} 7. Qc2 {[%emt 0:01:30]} h6 {[%emt 0:01:30]} 8. Bh4 {[%emt 0:09:30]} g5 {[%emt 0:01:30]} 9. Bg3 {[%emt 0:00:30]} Ne4 {[%emt 0:00:30]} 10. Nd2 {[%emt 0:00:30]} Nxg3 {[%emt 0:03:30]} 11. hxg3 {[%emt 0:00:30]} Qf6 {[%emt 0:00:30]} 12. e3 {[%emt 0:01:30]} Bf5 {[%emt 0:00:30]} 13. Qb3 {[%emt 0:01:30]} Qe7 {[%emt 0:00:30]} 14. Be2 {[%emt 0:02:30]} Kf8 {[%emt 0:03:30]} 15. a3 {[%emt 0:02:30]} Bd6 {[%emt 0:01:30]} 16. Rc1 {[%emt 0:09:30]} Kg7 {[%emt 0:06:30]} 17. g4 {[%emt 0:04:30]} Bc8 {[%emt 0:03:30]} 18. Qc2 {[%emt 0:05:30]} Nd7 {[%emt 0:00:30]} 19. e4 {[%emt 0:09:30]} dxe4 {[%emt 0:04:30]} 20. Qxe4 {[%emt 0:00:30]} Nf6 {[%emt 0:01:30]} 21. Qxe7 {[%emt 0:00:00]} Bxe7 {[%emt 0:00:30]} 22. f3 {[%emt 0:00:00]} Rd8 {[%emt 0:00:30]} 23. Nb3 {[%emt 0:02:30]} Be6 {[%emt 0:01:30]} 24. Nc5 {[%emt 0:00:30]} Rxd4 {[%emt 0:04:30]} 25. Nxb7 {[%emt 0:01:30]} a5 {[%emt 0:00:30]} 26. Nd1 {[%emt 0:01:30]} Bd5 {[%emt 0:03:30]} 27. Nc5 {[%emt 0:00:30]} Bxc5 {[%emt 0:05:30]} 28. Rxc5 {[%emt 0:00:30]} Re8 {[%emt 0:00:30]} 29. Rc2 {[%emt 0:02:30]} Bb3 {[%emt 0:06:30]} 30. Rd2 {[%emt 0:00:30]} c5 {[%emt 0:00:30]} 31. Rxd4 {[%emt 0:05:30]} cxd4 {[%emt 0:00:00]} 32. Kd2 {[%emt 0:00:30]} Nd5 {[%emt 0:02:00]} 33. g3 {[%emt 0:01:30]} Rb8 {[%emt 0:06:30]} 34. Nf2 {[%emt 0:01:30]} Ne3 {[%emt 0:00:30]} 35. Rc1 {[%emt 0:10:43]} Bd5 {[%emt 0:00:30]} 36. Nd3 {[%emt 0:00:22]} Nc4+ {[%emt 0:03:30]} 37. Kc2 {[%emt 0:00:17]} Re8 {[%emt 0:00:30]} 38. Kd1 {[%emt 0:00:21]} Re3 {[%emt 0:00:30]} 39. b4 {[%emt 0:01:50]} Bxf3 {[%emt 0:01:30]} 40. Bxf3 {[%emt 0:00:17]} Rxd3+ {[%emt 0:00:30]} 41. Ke2 {[%emt 0:00:09]} Re3+ {[%emt 0:02:30]} 42. Kf2 {[%emt 0:00:06]} Ne5 {[%emt 0:00:00]} 43. Be2 {[%emt 0:01:04]} axb4 {[%emt 0:03:00]} 44. axb4 {[%emt 0:00:18]} Rb3 {[%emt 0:00:30]} 45. Rc5 {[%emt 0:01:00]} Kf6 {[%emt 0:00:00]} 46. b5 {[%emt 0:00:09]} Rb2 {[%emt 0:01:00]} 47. Ke1 {[%emt 0:00:06]} d3 {[%emt 0:01:30]} 48. Bd1 {[%emt 0:00:10]} Ke6 {[%emt 0:00:00]} 49. Rc8 {[%emt 0:01:38]} Rxb5 {[%emt 0:00:00]} 50. Rh8 {[%emt 0:00:03]} Kd5 {[%emt 0:01:30]} 51. Rxh6 {[%emt 0:00:04]} Kd4 {[%emt 0:00:30]} 0-1

[Event "4th Sabbiadoro-Master 2018"]
[Site "Lignano Sabbiadoro"]
[Date "2018.08.05"]
[Round "9.4"]
[White "Brankovic, Dejan"]
[Black "Sgnaolin, Davide"]
[Result "1-0"]
[ECO "B31"]
[WhiteElo "2377"]
[BlackElo "2267"]
[Annotator "NA"]
[PlyCount "57"]
[EventDate "2018.07.29"]
[EventType "swiss"]
[EventCountry "ITA"]
[SourceTitle "playchess.com"]
[Source "ChessBase"]
[SourceQuality "1"]
[TimeControl "5400+30"]

1. e4 {[%emt 0:00:30]} c5 {[%emt 0:00:30]} 2. Nf3 {[%emt 0:00:00]} Nc6 {[%emt 0:00:00]} 3. Bb5 {[%emt 0:01:00]} g6 {[%emt 0:00:00]} 4. Bxc6 {[%emt 0:00:00]} dxc6 {[%emt 0:00:30]} 5. O-O {[%emt 0:00:00]} Bg7 {[%emt 0:00:30]} 6. d3 {[%emt 0:00:30]} Nf6 {[%emt 0:01:30]} 7. h3 {[%emt 0:00:30]} Nd7 {[%emt 0:05:30]} 8. Nc3 {[%emt 0:00:30]} e5 {[%emt 0:00:30]} 9. Be3 {[%emt 0:00:30]} Qe7 {[%emt 0:02:30]} 10. Qd2 {[%emt 0:00:00]} h6 {[%emt 0:00:30]} 11. Nh2 {[%emt 0:01:00]} Nf8 {[%emt 0:03:30]} 12. f4 {[%emt 0:00:00]} exf4 {[%emt 0:00:30]} 13. Bxf4 {[%emt 0:00:00]} Ne6 {[%emt 0:08:30]} 14. Bg3 {[%emt 0:00:30]} Nd4 {[%emt 0:13:30]} 15. Rae1 {[%emt 0:05:30]} Be6 {[%emt 0:06:30]} 16. e5 {[%emt 0:11:30]} O-O-O {[%emt 0:04:30]} 17. Ne4 {[%emt 0:05:30]} Nf5 {[%emt 0:06:30]} 18. Bf2 {[%emt 0:03:30]} Bxe5 {[%emt 0:06:30]} 19. Nxc5 {[%emt 0:04:30]} Qc7 {[%emt 0:05:30]} 20. Nf3 {[%emt 0:02:30]} Bf4 {[%emt 0:02:30]} 21. Qb4 {[%emt 0:04:30]} Bd6 {[%emt 0:12:48]} 22. Qa4 {[%emt 0:04:30]} Bxc5 {[%emt 0:01:58]} 23. Bxc5 {[%emt 0:00:30]} b6 {[%emt 0:00:06]} 24. Be3 {[%emt 0:10:30]} Nxe3 {[%emt 0:01:46]} 25. Rxe3 {[%emt 0:00:30]} Rd5 {[%emt 0:03:44]} 26. Nd4 {[%emt 0:04:30]} Rd6 {[%emt 0:07:53]} 27. Nxe6 {[%emt 0:01:30]} Rxe6 {[%emt 0:00:23]} 28. Rxe6 {[%emt 0:00:30]} fxe6 {[%emt 0:00:01]} 29. Qe4 {[%emt 0:01:30]} 1-0

[Event "4th Sabbiadoro-Master 2018"]
[Site "Lignano Sabbiadoro"]
[Date "2018.08.05"]
[Round "9.5"]
[White "Zuttioni, Federico"]
[Black "Micottis, Dorian"]
[Result "1-0"]
[ECO "A48"]
[WhiteElo "2141"]
[BlackElo "2279"]
[Annotator "NA"]
[PlyCount "119"]
[EventDate "2018.07.29"]
[EventType "swiss"]
[EventCountry "ITA"]
[SourceTitle "playchess.com"]
[Source "ChessBase"]
[SourceQuality "1"]
[TimeControl "5400+30"]

1. d4 {[%emt 0:00:30]} Nf6 {[%emt 0:00:30]} 2. Nf3 {[%emt 0:00:00]} g6 {[%emt 0:00:00]} 3. Bf4 {[%emt 0:00:00]} Bg7 {[%emt 0:00:00]} 4. Qc1 {[%emt 0:00:30]} c5 {[%emt 0:05:30]} 5. c3 {[%emt 0:00:30]} d6 {[%emt 1:26:30]} 6. g3 {[%emt 0:09:30]} Nc6 {[%emt 0:00:00]} 7. dxc5 {[%emt 0:06:30]} dxc5 {[%emt 0:00:00]} 8. Bg2 {[%emt 0:00:30]} O-O {[%emt 0:00:00]} 9. O-O {[%emt 0:00:30]} Bg4 {[%emt 0:00:00]} 10. h3 {[%emt 0:06:30]} Be6 {[%emt 0:00:00]} 11. Na3 {[%emt 0:12:30]} Qc8 {[%emt 0:00:00]} 12. Kh2 {[%emt 0:01:30]} Rd8 {[%emt 0:00:00]} 13. Ng5 {[%emt 0:12:30]} Bd7 {[%emt 0:00:00]} 14. Rd1 {[%emt 0:02:30]} h6 {[%emt 0:00:00]} 15. Nf3 {[%emt 0:00:30]} g5 {[%emt 0:00:00]} 16. Be3 {[%emt 0:01:30]} b6 {[%emt 0:00:00]} 17. Nc4 {[%emt 0:06:30]} Qc7 {[%emt 0:00:00]} 18. Bd2 {[%emt 0:02:30]} Bf5 {[%emt 0:00:00]} 19. Be1 {[%emt 0:03:30]} Be4 {[%emt 0:00:00]} 20. a4 {[%emt 0:04:30]} Rxd1 {[%emt 0:00:00]} 21. Qxd1 {[%emt 0:02:30]} Rd8 {[%emt 0:00:00]} 22. Qb3 {[%emt 0:05:30]} Bd5 {[%emt 0:00:00]} 23. Nfd2 {[%emt 0:00:31]} Na5 {[%emt 0:00:00]} 24. Qb5 {[%emt 0:00:29]} Bxg2 {[%emt 0:00:00]} 25. Kxg2 {[%emt 0:02:40]} Nb7 {[%emt 0:00:00]} 26. a5 {[%emt 0:00:41]} bxa5 {[%emt 0:00:00]} 27. Nxa5 {[%emt 0:00:47]} Nd6 {[%emt 0:00:00]} 28. Qa6 {[%emt 0:03:31]} Rb8 {[%emt 0:00:00]} 29. Nac4 {[%emt 0:01:15]} Rb7 {[%emt 0:00:00]} 30. f3 {[%emt 0:00:52]} Nd7 {[%emt 0:00:00]} 31. g4 {[%emt 0:01:51]} Nb8 {[%emt 0:01:48]} 32. Qa5 {[%emt 0:00:39]} Qxa5 {[%emt 0:01:29]} 33. Rxa5 {[%emt 0:00:13]} Nd7 {[%emt 0:00:04]} 34. Bg3 {[%emt 0:02:32]} Bf8 {[%emt 0:01:17]} 35. e4 {[%emt 0:04:19]} Nb6 {[%emt 0:04:54]} 36. Bxd6 {[%emt 0:00:29]} Nxc4 {[%emt 0:00:50]} 37. Nxc4 {[%emt 0:00:15]} exd6 {[%emt 0:00:01]} 38. Kf2 {[%emt 0:00:47]} Kg7 {[%emt 0:00:24]} 39. Ra6 {[%emt 0:00:15]} f6 {[%emt 0:01:32]} 40. Ke3 {[%emt 0:00:32]} Rd7 {[%emt 0:00:44]} 41. Kd3 {[%emt 0:02:23]} d5 {[%emt 0:00:32]} 42. exd5 {[%emt 0:00:07]} Rxd5+ {[%emt 0:00:03]} 43. Ke4 {[%emt 0:00:18]} Rd7 {[%emt 0:00:20]} 44. Kf5 {[%emt 0:00:45]} Be7 {[%emt 0:00:23]} 45. Ke6 {[%emt 0:00:25]} Rb7 {[%emt 0:00:40]} 46. Ne3 {[%emt 0:01:25]} Bd8 {[%emt 0:00:47]} 47. Nf5+ {[%emt 0:00:38]} Kg6 {[%emt 0:00:15]} 48. Rd6 {[%emt 0:00:33]} Bb6 {[%emt 0:02:25]} 49. Rd7 {[%emt 0:01:07]} Rxd7 {[%emt 0:00:03]} 50. Kxd7 {[%emt 0:00:01]} h5 {[%emt 0:00:16]} 51. Ke6 {[%emt 0:00:21]} hxg4 {[%emt 0:00:13]} 52. hxg4 {[%emt 0:00:07]} Bc7 {[%emt 0:00:46]} 53. c4 {[%emt 0:00:27]} a5 {[%emt 0:00:23]} 54. b3 {[%emt 0:00:11]} Be5 {[%emt 0:00:04]} 55. Ne7+ {[%emt 0:01:01]} Kg7 {[%emt 0:00:15]} 56. Nd5 {[%emt 0:00:29]} Kg6 {[%emt 0:00:19]} 57. Nb6 {[%emt 0:00:29]} Bc3 {[%emt 0:00:53]} 58. Nd7 {[%emt 0:00:20]} Bd4 {[%emt 0:00:04]} 59. Kd5 {[%emt 0:00:10]} f5 {[%emt 0:00:10]} 60. Nxc5 {[%emt 0:00:15]} 1-0

[Event "4th Sabbiadoro-Master 2018"]
[Site "Lignano Sabbiadoro"]
[Date "2018.08.05"]
[Round "9.6"]
[White "Migliorini, Matteo"]
[Black "Peric, Slavisa"]
[Result "1/2-1/2"]
[ECO "C01"]
[WhiteElo "2130"]
[BlackElo "2120"]
[Annotator "NA"]
[PlyCount "79"]
[EventDate "2018.07.29"]
[EventType "swiss"]
[EventCountry "ITA"]
[SourceTitle "playchess.com"]
[Source "ChessBase"]
[SourceQuality "1"]
[TimeControl "5400+30"]

1. e4 {[%emt 0:00:30]} e6 {[%emt 0:05:30]} 2. d4 {[%emt 0:00:00]} d5 {[%emt 0:00:30]} 3. Bd3 {[%emt 0:00:00]} dxe4 {[%emt 0:01:30]} 4. Bxe4 {[%emt 0:00:30]} Nf6 {[%emt 0:00:00]} 5. Bf3 {[%emt 0:00:00]} c5 {[%emt 0:00:00]} 6. Ne2 {[%emt 0:00:00]} Nc6 {[%emt 0:01:30]} 7. Be3 {[%emt 0:00:00]} cxd4 {[%emt 0:00:30]} 8. Nxd4 {[%emt 0:00:00]} Ne5 {[%emt 0:01:30]} 9. Nc3 {[%emt 0:02:30]} a6 {[%emt 0:08:30]} 10. O-O {[%emt 0:02:30]} Nc4 {[%emt 0:06:30]} 11. Qe2 {[%emt 0:06:30]} Nxe3 {[%emt 0:06:30]} 12. Qxe3 {[%emt 0:03:30]} Be7 {[%emt 0:16:30]} 13. Rad1 {[%emt 0:00:30]} Qc7 {[%emt 0:00:30]} 14. Na4 {[%emt 0:17:30]} Bd7 {[%emt 0:01:30]} 15. Qb3 {[%emt 0:01:30]} O-O {[%emt 0:07:30]} 16. Rfe1 {[%emt 0:08:30]} Bd6 {[%emt 0:10:30]} 17. Nb6 {[%emt 0:04:30]} Rad8 {[%emt 0:00:30]} 18. g3 {[%emt 0:01:30]} Bc5 {[%emt 0:00:30]} 19. Nxd7 {[%emt 0:01:30]} Rxd7 {[%emt 0:00:30]} 20. Ne2 {[%emt 0:05:30]} Rfd8 {[%emt 0:04:30]} 21. Nf4 {[%emt 0:00:30]} Rxd1 {[%emt 0:07:04]} 22. Rxd1 {[%emt 0:00:30]} Rxd1+ {[%emt 0:00:14]} 23. Bxd1 {[%emt 0:00:00]} b5 {[%emt 0:00:09]} 24. Qf3 {[%emt 0:04:00]} Qa7 {[%emt 0:02:16]} 25. Nd3 {[%emt 0:00:30]} Bb6 {[%emt 0:00:21]} 26. Qc6 {[%emt 0:01:30]} g6 {[%emt 0:00:10]} 27. Bf3 {[%emt 0:01:30]} Kg7 {[%emt 0:00:29]} 28. Kg2 {[%emt 0:01:30]} Nd7 {[%emt 0:02:05]} 29. Qb7 {[%emt 0:01:30]} Nc5 {[%emt 0:02:08]} 30. Nxc5 {[%emt 0:00:30]} Bxc5 {[%emt 0:00:08]} 31. Qxa7 {[%emt 0:00:30]} Bxa7 {[%emt 0:00:19]} 32. b4 {[%emt 0:05:30]} Bb6 {[%emt 0:00:20]} 33. c3 {[%emt 0:01:30]} a5 {[%emt 0:00:10]} 34. Bc6 {[%emt 0:00:30]} axb4 {[%emt 0:00:10]} 35. cxb4 {[%emt 0:00:00]} Bd4 {[%emt 0:00:25]} 36. Bxb5 {[%emt 0:00:00]} Bc3 {[%emt 0:00:06]} 37. a3 {[%emt 0:00:30]} Bb2 {[%emt 0:00:08]} 38. a4 {[%emt 0:00:30]} Bc3 {[%emt 0:00:28]} 39. a5 {[%emt 0:00:30]} Bxb4 {[%emt 0:00:11]} 40. a6 {[%emt 0:00:00]} 1/2-1/2